fUSD/lending_fUSD_20250902
["ID","MTS","AMOUNT","RATE_DAILY","PERIOD"]
[382927962,1756773047366,-2047.35,0.00036986,14]
[382927963,1756773047375,-413.77,0.00036986,14]
[382927964,1756773047385,-400.0,0.00036986,14]
[382927965,1756773047394,-493.58,0.00036986,14]
[382927966,1756773047403,-500.0,0.00036986,14]
[382927967,1756773047413,-500.0,0.00036986,14]
[382927968,1756773047422,-500.0,0.00036986,14]
[382927969,1756773047431,-782.64,0.00036986,14]
[382927970,1756773047441,-500.0,0.00036986,14]
[382927971,1756773047450,-500.0,0.00036986,14]
[382927972,1756773047459,-500.0,0.00036986,14]
[382927973,1756773047468,-500.0,0.00036986,14]
[382927974,1756773047477,-400.0,0.00036986,14]
[382927975,1756773047487,-500.0,0.00036986,14]
[382927976,1756773047496,-440.99,0.00036986,14]
[382927977,1756773047506,-500.0,0.00036986,14]
[382927978,1756773047515,-500.0,0.00036986,14]
[382927979,1756773047525,-421.77,0.00036986,14]
[382927980,1756773047534,-655.27,0.00036986,14]
[382927981,1756773047546,-666.39,0.00036986,14]
[382927982,1756773047559,-400.0,0.00036986,14]
[382927983,1756773047567,-400.0,0.00036986,14]
[382927984,1756773047575,-400.0,0.00036986,14]
[382927985,1756773047586,-650.81,0.00036986,14]
[382927986,1756773047595,-466.8,0.00036986,14]
[382927987,1756773047604,-400.0,0.00036986,14]
[382927988,1756773047614,-400.0,0.00036986,14]
[382927989,1756773047624,-400.0,0.00036986,14]
[382927990,1756773047639,-712.62,0.00036986,14]
[382927991,1756773047648,-400.0,0.00036986,14]
[382927992,1756773047658,-400.0,0.00036986,14]
[382927993,1756773047669,-400.0,0.00036986,14]
[382927994,1756773047679,-774.94,0.00036986,14]
[382927995,1756773047688,-400.0,0.00036986,14]
[382927996,1756773047698,-400.0,0.00036986,14]
[382927997,1756773047708,-400.0,0.00036986,14]
[382927998,1756773047718,-592.82,0.00036986,14]
[382927999,1756773047728,-400.0,0.00036986,14]
[382928000,1756773047737,-588.87,0.00036986,14]
[382928001,1756773047747,-739.47,0.00036986,14]
[382928002,1756773047756,-789.8,0.00036986,14]
[382928003,1756773047766,-400.0,0.00036986,14]
[382928004,1756773047778,-939.51,0.00036986,14]
[382928005,1756773047788,-400.0,0.00036986,14]
[382928006,1756773047799,-400.0,0.00036986,14]
[382928007,1756773047809,-465.21,0.00036986,14]
[382928008,1756773047819,-605.36,0.00036986,14]
[382928009,1756773047832,-400.0,0.00036986,14]
[382928010,1756773047847,-400.0,0.00036986,14]
[382928011,1756773047858,-400.0,0.00036986,14]
[382928012,1756773047868,-461.39,0.00036986,14]
[382928013,1756773047877,-2107.22,0.00036986,14]
[382928014,1756773047887,-847.41,0.00036986,14]
[382928015,1756773047898,-453.52,0.00036986,14]
[382928016,1756773047907,-496.94,0.00036986,14]
[382928017,1756773047917,-503.51,0.00036986,14]
[382928018,1756773047927,-400.0,0.00036986,14]
[382928019,1756773047937,-400.0,0.00036986,14]
[382928020,1756773047946,-655.4,0.00036986,14]
[382928021,1756773047956,-598.87,0.00036986,14]
[382928022,1756773047965,-400.0,0.00036986,14]
[382928023,1756773047975,-400.0,0.00036986,14]
[382928024,1756773047984,-151.0,0.00036986,30]
[382928025,1756773047994,-151.0,0.00036986,30]
[382928026,1756773048003,-400.0,0.00036986,14]
[382928027,1756773048013,-400.0,0.00036986,14]
[382928028,1756773048024,-400.0,0.00036986,14]
[382928029,1756773048034,-503.33,0.00036986,14]
[382928030,1756773048044,-698.08,0.00036986,14]
[382928031,1756773048053,-406.16,0.00036986,14]
[382928032,1756773048063,-1000.0,0.00036986,7]
[382928033,1756773048072,-400.0,0.00036986,14]
[382928034,1756773048082,-400.0,0.00036986,14]
[382928035,1756773048092,-400.0,0.00036986,14]
[382928036,1756773048101,-408.88,0.00036986,14]
[382928037,1756773048111,-400.0,0.00036986,14]
[382928038,1756773048120,-422.39,0.00036986,14]
[382928039,1756773048130,-151.0,0.00036986,30]
[382928040,1756773048139,-400.0,0.00036986,14]
[382928041,1756773048149,-151.0,0.00036986,30]
[382928042,1756773048160,-400.0,0.00036986,14]
[382928043,1756773048170,-400.0,0.00036986,14]
[382928044,1756773048180,-400.0,0.00036986,14]
[382928045,1756773048190,-570.84,0.00036986,14]
[382928046,1756773048200,-400.0,0.00036986,14]
[382928047,1756773048209,-400.0,0.00036986,14]
[382928048,1756773048219,-400.0,0.00036986,14]
[382928049,1756773048229,-400.0,0.00036986,14]
[382928050,1756773048239,-151.0,0.00036986,30]
[382928051,1756773048249,-171.803072,0.00036986,30]
[382928052,1756773048259,-400.0,0.00036986,14]
[382928053,1756773048270,-400.0,0.00036986,14]
[382928054,1756773048284,-400.0,0.00036986,14]
[382928055,1756773048294,-152.414116,0.00036986,30]
[382928056,1756773048304,-400.0,0.00036986,14]
[382928057,1756773048315,-400.0,0.00036986,14]
[382928058,1756773048325,-400.0,0.00036986,14]
[382928059,1756773048334,-400.0,0.00036986,14]
[382928060,1756773048344,-543.94,0.00036986,14]
[382928061,1756773048353,-400.0,0.00036986,14]
[382928062,1756773048363,-400.0,0.00036986,14]
[382928063,1756773048372,-400.0,0.00036986,14]
[382928064,1756773048382,-866.21,0.00036986,14]
[382928065,1756773048392,-656.2,0.00036986,14]
[382928066,1756773048401,-400.0,0.00036986,14]
[382928067,1756773048411,-400.0,0.00036986,14]
[382928068,1756773048420,-400.0,0.00036986,14]
[382928069,1756773048430,-400.0,0.00036986,14]
[382928070,1756773048440,-538.36,0.00036986,14]
[382928071,1756773048450,-400.0,0.00036986,14]
[382928072,1756773048460,-400.0,0.00036986,14]
[382928073,1756773048471,-300.0,0.00036986,5]
[382928074,1756773048481,-400.0,0.00036986,14]
[382928075,1756773048491,-622.5,0.00036986,14]
[382928076,1756773048501,-510.89,0.00036986,14]
[382928077,1756773048511,-581.11,0.00036986,14]
[382928078,1756773048520,-400.0,0.00036986,14]
[382928079,1756773048534,-511.5,0.00036986,14]
[382928080,1756773048545,-400.0,0.00036986,14]
[382928081,1756773048555,-506.92,0.00036986,14]
[382928082,1756773048565,-400.0,0.00036986,14]
[382928083,1756773048574,-400.0,0.00036986,14]
[382928084,1756773048584,-413.47405305,0.00036986,14]
[382928085,1756773048595,-400.0,0.00036986,14]
[382928086,1756773048605,-400.0,0.00036986,14]
[382928087,1756773048615,-400.0,0.00036986,14]
[382928088,1756773048625,-400.0,0.00036986,14]
[382928089,1756773048635,-551.56,0.00036986,14]
[382928090,1756773048645,-400.0,0.00036986,14]
[382928091,1756773048655,-400.0,0.00036986,14]
[382928092,1756773048665,-400.0,0.00036986,14]
[382928093,1756773048675,-400.0,0.00036986,14]
[382928094,1756773048689,-419.83387583,0.00036986,14]
[382928095,1756773048700,-400.0,0.00036986,14]
[382928096,1756773048713,-616.54,0.00036986,14]
[382928097,1756773048723,-400.0,0.00036986,14]
[382928098,1756773048733,-400.0,0.00036986,14]
[382928099,1756773048743,-407.40134019,0.00036986,14]
[382928100,1756773048753,-603.92,0.00036986,14]
[382928101,1756773048762,-414.02178677,0.00036986,14]
[382928102,1756773048772,-400.0,0.00036986,14]
[382928103,1756773048785,-611.57,0.00036986,14]
[382928104,1756773048795,-400.0,0.00036986,14]
[382928105,1756773048805,-580.36,0.00036986,14]
[382928106,1756773048815,-720.82,0.00036986,14]
[382928107,1756773048825,-557.99,0.00036986,14]
[382928108,1756773048835,-556.56,0.00036986,14]
[382928109,1756773048845,-400.0,0.00036986,14]
[382928110,1756773048855,-400.0,0.00036986,14]
[382928111,1756773048865,-402.39854503,0.00036986,14]
[382928112,1756773048874,-494.47,0.00036986,14]
[382928113,1756773048884,-400.0,0.00036986,14]
[382928114,1756773048893,-400.0,0.00036986,14]
[382928115,1756773048903,-400.0,0.00036986,14]
[382928116,1756773048912,-678.32,0.00036986,14]
[382928117,1756773048922,-455.92,0.00036986,14]
[382928118,1756773048931,-400.0,0.00036986,14]
[382928119,1756773048941,-597.9,0.00036986,14]
[382928120,1756773048950,-400.0,0.00036986,14]
[382928121,1756773048959,-400.0,0.00036986,14]
[382928122,1756773048968,-400.0,0.00036986,14]
[382928123,1756773048978,-400.0,0.00036986,14]
[382928124,1756773048987,-400.0,0.00036986,14]
[382928125,1756773048997,-400.0,0.00036986,14]
[382928126,1756773049006,-445.31,0.00036986,14]
[382928127,1756773049015,-340.59342261,0.00036986,14]
[382928128,1756773049025,-400.0,0.00036986,14]
[382928129,1756773049035,-400.0,0.00036986,14]
[382928130,1756773049044,-400.0,0.00036986,14]
[382928131,1756773049053,-400.0,0.00036986,14]
[382928132,1756773049063,-400.0,0.00036986,14]
[382928133,1756773049072,-400.0,0.00036986,14]
[382928134,1756773049082,-400.0,0.00036986,14]
[382928135,1756773049091,-400.0,0.00036986,14]
[382928136,1756773049101,-400.0,0.00036986,14]
[382928137,1756773049111,-400.0,0.00036986,14]
[382928138,1756773049120,-488.01,0.00036986,14]
[382928139,1756773049130,-674.06,0.00036986,14]
[382928140,1756773049139,-429.63,0.00036986,14]
[382928141,1756773049149,-546.74,0.00036986,14]
[382928142,1756773049159,-400.0,0.00036986,14]
[382928143,1756773049168,-423.92,0.00036986,14]
[382928144,1756773049178,-400.0,0.00036986,14]
[382928145,1756773049187,-400.0,0.00036986,14]
[382928146,1756773049196,-400.0,0.00036986,14]
[382928147,1756773049205,-787.04,0.00036986,14]
[382928148,1756773049215,-520.42,0.00036986,14]
[382928149,1756773049226,-400.0,0.00036986,14]
[382928150,1756773049236,-400.0,0.00036986,14]
[382928151,1756773049246,-400.0,0.00036986,14]
[382928152,1756773049255,-400.0,0.00036986,14]
[382928153,1756773049265,-400.0,0.00036986,14]
[382928154,1756773049275,-400.0,0.00036986,14]
[382928155,1756773049284,-623.55,0.00036986,14]
[382928156,1756773049294,-401.14,0.00036986,14]
[382928157,1756773049304,-400.0,0.00036986,14]
[382928158,1756773049314,-400.0,0.00036986,14]
[382928159,1756773049323,-400.0,0.00036986,14]
[382928160,1756773049333,-400.0,0.00036986,14]
[382928161,1756773049342,-400.0,0.00036986,14]
[382928162,1756773049352,-464.03,0.00036986,14]
[382928163,1756773049361,-400.0,0.00036986,14]
[382928164,1756773049371,-422.52,0.00036986,14]
[382928165,1756773049380,-400.0,0.00036986,14]
[382928166,1756773049390,-711.36,0.00036986,14]
[382928167,1756773049399,-400.0,0.00036986,14]
[382928168,1756773049408,-400.0,0.00036986,14]
[382928169,1756773049418,-504.48,0.00036986,14]
[382928170,1756773049428,-400.0,0.00036986,14]
[382928171,1756773049437,-581.6,0.00036986,14]
[382928172,1756773049447,-400.0,0.00036986,14]
[382928173,1756773049456,-572.07,0.00036986,14]
[382928174,1756773049466,-400.0,0.00036986,14]
[382928175,1756773049477,-585.67,0.00036986,14]
[382928176,1756773049487,-400.0,0.00036986,14]
[382928177,1756773049498,-400.0,0.00036986,14]
[382928178,1756773049508,-400.0,0.00036986,14]
[382928179,1756773049518,-400.0,0.00036986,14]
[382928180,1756773049529,-400.0,0.00036986,14]
[382928181,1756773049539,-400.0,0.00036986,14]
[382928182,1756773049554,-400.0,0.00036986,14]
[382928183,1756773049564,-400.0,0.00036986,14]
[382928184,1756773049574,-151.0,0.00036986,30]
[382928185,1756773049584,-469.56,0.00036986,14]
[382928186,1756773049595,-400.0,0.00036986,14]
[382928187,1756773049606,-400.0,0.00036986,14]
[382928188,1756773049616,-400.0,0.00036986,14]
[382928189,1756773049626,-490.12,0.00036986,14]
[382928190,1756773049636,-586.91,0.00036986,14]
[382928191,1756773049646,-400.0,0.00036986,2]
[382928192,1756773049656,-400.0,0.00036986,14]
[382928193,1756773049666,-537.54,0.00036986,14]
[382928194,1756773049675,-643.62,0.00036986,14]
[382928195,1756773049685,-600.83,0.00036986,14]
[382928196,1756773049695,-515.49,0.00036986,14]
[382928197,1756773049704,-694.53,0.00036986,14]
[382928198,1756773049716,-400.0,0.00036986,14]
[382928199,1756773049726,-151.0,0.00036986,30]
[382928200,1756773049736,-151.0,0.00036986,30]
[382928201,1756773049745,-400.0,0.00036986,14]
[382928202,1756773049755,-256.0,0.00036986,30]
[382928203,1756773049765,-759.21,0.00036986,14]
[382928204,1756773049775,-400.0,0.00036986,14]
[382928205,1756773049784,-556.57,0.00036986,14]
[382928206,1756773049794,-400.0,0.00036986,14]
[382928207,1756773049805,-400.0,0.00036986,14]
[382928208,1756773049815,-380.41525996,0.00036986,14]
[382928209,1756773049824,-400.0,0.00036986,14]
[382928210,1756773049834,-588.14,0.00036986,14]
[382928211,1756773049843,-688.38,0.00036986,14]
[382928212,1756773049852,-400.0,0.00036986,14]
[382928213,1756773049862,-530.21,0.00036986,14]
[382928214,1756773049871,-400.0,0.00036986,14]
[382928215,1756773049881,-400.0,0.00036986,14]
[382928216,1756773049891,-400.0,0.00036986,14]
[382928217,1756773049900,-400.0,0.00036986,14]
[382928218,1756773049909,-500.0,0.00036986,14]
[382928219,1756773049919,-401.46887255,0.00036986,14]
[382928220,1756773049928,-300.0,0.00036986,14]
[382928221,1756773049938,-400.0,0.00036986,14]
[382928222,1756773049947,-726.37,0.00036986,14]
[382928223,1756773049956,-604.45,0.00036986,14]
[382928224,1756773049966,-151.0,0.00036986,30]
[382928225,1756773049975,-451.97,0.00036986,14]
[382928226,1756773049984,-151.0,0.00036986,30]
[382928227,1756773049994,-400.0,0.00036986,14]
[382928228,1756773050002,-400.0,0.00036986,14]
[382928229,1756773050011,-400.0,0.00036986,14]
[382928230,1756773050021,-461.04,0.00036986,14]
[382928231,1756773050032,-400.0,0.00036986,14]
[382928232,1756773050043,-400.0,0.00036986,14]
[382928233,1756773050054,-406.03174334,0.00036986,14]
[382928234,1756773050066,-657.97,0.00036986,14]
[382928235,1756773050076,-459.18,0.00036986,14]
[382928236,1756773050085,-400.0,0.00036986,14]
[382928237,1756773050095,-235.65523034,0.00036986,14]
[382928238,1756773050105,-400.0,0.00036986,14]
[382928239,1756773050115,-400.0,0.00036986,14]
[382928240,1756773050124,-400.0,0.00036986,14]
[382928241,1756773050135,-400.0,0.00036986,14]
[382928242,1756773050146,-400.0,0.00036986,14]
[382928243,1756773050155,-470.86,0.00036986,14]
[382928244,1756773050165,-555.61,0.00036986,14]
[382928245,1756773050174,-400.0,0.00036986,14]
[382928246,1756773050184,-400.0,0.00036986,14]
[382928247,1756773050194,-400.0,0.00036986,14]
[382928248,1756773050204,-400.0,0.00036986,14]
[382928249,1756773050214,-400.0,0.00036986,14]
[382928250,1756773050224,-400.0,0.00036986,14]
[382928251,1756773050234,-400.0,0.00036986,14]
[382928252,1756773050244,-400.0,0.00036986,14]
[382928253,1756773050253,-400.0,0.00036986,14]
[382928254,1756773050263,-400.0,0.00036986,14]
[382928255,1756773050273,-470.45683135,0.00036986,14]
[382928256,1756773050283,-400.0,0.00036986,14]
[382928257,1756773050293,-643.68,0.00036986,14]
[382928258,1756773050303,-400.0,0.00036986,14]
[382928259,1756773050312,-400.0,0.00036986,14]
[382928260,1756773050322,-400.0,0.00036986,14]
[382928261,1756773050332,-472.87,0.00036986,14]
[382928262,1756773050341,-615.76,0.00036986,14]
[382928263,1756773050351,-400.0,0.00036986,14]
[382928264,1756773050361,-826.47,0.00036986,14]
[382928265,1756773050371,-400.0,0.00036986,14]
[382928266,1756773050381,-400.0,0.00036986,14]
[382928267,1756773050391,-562.21,0.00036986,14]
[382928268,1756773050400,-400.0,0.00036986,14]
[382928269,1756773050410,-400.0,0.00036986,14]
[382928270,1756773050420,-330.56766282,0.00036986,14]
[382928271,1756773050430,-400.0,0.00036986,14]
[382928272,1756773050440,-400.0,0.00036986,14]
[382928273,1756773050450,-400.0,0.00036986,14]
[382928274,1756773050461,-716.27,0.00036986,14]
[382928275,1756773050471,-779.72,0.00036986,14]
[382928276,1756773050481,-400.0,0.00036986,14]
[382928277,1756773050490,-799.43,0.00036986,14]
[382928278,1756773050500,-400.0,0.00036986,14]
[382928279,1756773050510,-400.0,0.00036986,14]
[382928280,1756773050658,-400.0,0.00036986,14]
[382928281,1756773050680,-400.0,0.00036986,14]
[382928282,1756773050690,-400.0,0.00036986,14]
[382928283,1756773050700,-151.0,0.00036986,30]
[382928284,1756773050709,-400.0,0.00036986,14]
[382928285,1756773050719,-151.0,0.00036986,30]
[382928286,1756773050728,-596.7,0.00036986,14]
[382928287,1756773050738,-400.0,0.00036986,14]
[382928288,1756773050747,-500.0,0.00036986,7]
[382928289,1756773050757,-500.0,0.00036986,7]
[382928290,1756773050766,-400.0,0.00036986,14]
[382928291,1756773050779,-400.0,0.00036986,14]
[382928292,1756773050791,-151.0,0.00036986,30]
[382928293,1756773050801,-151.0,0.00036986,30]
[382928294,1756773050811,-434.51,0.00036986,14]
[382928295,1756773050821,-151.0,0.00036986,30]
[382928296,1756773050831,-151.0,0.00036986,30]
[382928297,1756773050842,-743.82,0.00036986,14]
[382928298,1756773050852,-151.0,0.00036986,30]
[382928299,1756773050862,-151.0,0.00036986,30]
[382928300,1756773050872,-449.14,0.00036986,14]
[382928301,1756773050882,-151.0,0.00036986,30]
[382928302,1756773050892,-400.0,0.00036986,14]
[382928303,1756773050901,-400.0,0.00036986,14]
[382928304,1756773050911,-694.85,0.00036986,14]
[382928305,1756773050921,-400.0,0.00036986,14]
[382928306,1756773050930,-400.0,0.00036986,14]
[382928307,1756773050941,-151.0,0.00036986,10]
[382928308,1756773050951,-560.8,0.00036986,14]
[382928309,1756773050961,-151.0,0.00036986,10]
[382928310,1756773050971,-400.0,0.00036986,14]
[382928311,1756773050982,-400.0,0.00036986,14]
[382928312,1756773050991,-189.755541,0.00036986,10]
[382928313,1756773051001,-151.0,0.00036986,30]
[382928314,1756773051011,-151.0,0.00036986,30]
[382928315,1756773051021,-151.0,0.00036986,30]
[382928316,1756773051033,-151.0,0.00036986,30]
[382928317,1756773051043,-672.72,0.00036986,14]
[382928318,1756773051053,-415.63,0.00036986,14]
[382928319,1756773051063,-761.26,0.00036986,14]
[382928320,1756773051072,-151.0,0.00036986,30]
[382928321,1756773051081,-400.0,0.00036986,14]
[382928322,1756773051090,-151.0,0.00036986,30]
[382928323,1756773051099,-400.0,0.00036986,14]
[382928324,1756773051109,-151.0,0.00036986,30]
[382928325,1756773051118,-151.0,0.00036986,30]
[382928326,1756773051128,-151.0,0.00036986,30]
[382928327,1756773051137,-654.91,0.00036986,14]
[382928328,1756773051147,-400.0,0.00036986,14]
[382928329,1756773051157,-400.0,0.00036986,14]
[382928330,1756773051167,-151.0,0.00036986,30]
[382928331,1756773051176,-460.68,0.00036986,14]
[382928332,1756773051186,-400.0,0.00036986,14]
[382928333,1756773051195,-151.0,0.00036986,30]
[382928334,1756773051204,-400.0,0.00036986,14]
[382928335,1756773051213,-400.0,0.00036986,14]
[382928336,1756773051223,-626.38,0.00036986,14]
[382928337,1756773051232,-500.0,0.00036986,14]
[382928338,1756773051241,-170.050794,0.00036986,30]
[382928339,1756773051249,-151.0,0.00036986,30]
[382928340,1756773051258,-151.0,0.00036986,30]
[382928341,1756773051267,-400.0,0.00036986,14]
[382928342,1756773051279,-400.0,0.00036986,14]
[382928343,1756773051287,-400.0,0.00036986,14]
[382928344,1756773051296,-400.0,0.00036986,14]
[382928345,1756773051305,-151.0,0.00036986,30]
[382928346,1756773051314,-151.0,0.00036986,30]
[382928347,1756773051323,-732.47,0.00036986,14]
[382928348,1756773051332,-578.11,0.00036986,14]
[382928349,1756773051341,-151.0,0.00036986,30]
[382928350,1756773051350,-151.0,0.00036986,30]
[382928351,1756773051358,-151.0,0.00036986,30]
[382928352,1756773051367,-151.0,0.00036986,30]
[382928353,1756773051377,-400.0,0.00036986,14]
[382928354,1756773051385,-400.0,0.00036986,14]
[382928355,1756773051394,-151.0,0.00036986,30]
[382928356,1756773051403,-151.0,0.00036986,30]
[382928357,1756773051412,-156.109443,0.00036986,30]
[382928358,1756773051422,-151.0,0.00036986,30]
[382928359,1756773051432,-400.0,0.00036986,14]
[382928360,1756773051445,-151.0,0.00036986,30]
[382928361,1756773051455,-156.109443,0.00036986,30]
[382928362,1756773051466,-521.54,0.00036986,14]
[382928363,1756773051475,-739.7,0.00036986,14]
[382928364,1756773051485,-400.0,0.00036986,14]
[382928365,1756773051495,-400.0,0.00036986,14]
[382928366,1756773051506,-400.0,0.00036986,14]
[382928367,1756773051516,-187.08491676,0.00036986,14]
[382928368,1756773051527,-156.109443,0.00036986,30]
[382928369,1756773051536,-400.0,0.00036986,14]
[382928370,1756773051549,-151.0,0.00036986,30]
[382928371,1756773051559,-156.109443,0.00036986,30]
[382928372,1756773051568,-151.0,0.00036986,30]
[382928373,1756773051577,-156.109443,0.00036986,30]
[382928374,1756773051587,-400.0,0.00036986,14]
[382928375,1756773051596,-571.92,0.00036986,14]
[382928376,1756773051606,-400.0,0.00036986,14]
[382928377,1756773051615,-151.0,0.00036986,30]
[382928378,1756773051626,-400.0,0.00036986,14]
[382928379,1756773051635,-156.109443,0.00036986,30]
[382928380,1756773051644,-151.0,0.00036986,30]
[382928381,1756773051653,-596.68,0.00036986,14]
[382928382,1756773051661,-156.109443,0.00036986,30]
[382928383,1756773051671,-400.0,0.00036986,14]
[382928384,1756773051681,-156.109443,0.00036986,30]
[382928385,1756773051692,-400.0,0.00036986,14]
[382928386,1756773051701,-633.82,0.00036986,14]
[382928387,1756773051711,-400.0,0.00036986,14]
[382928388,1756773051722,-400.0,0.00036986,14]
[382928389,1756773051732,-400.0,0.00036986,14]
[382928390,1756773051742,-400.0,0.00036986,14]
[382928391,1756773051752,-400.0,0.00036986,14]
[382928392,1756773051761,-400.0,0.00036986,14]
[382928393,1756773051771,-400.0,0.00036986,14]
[382928394,1756773051786,-654.56,0.00036986,14]
[382928395,1756773051795,-400.0,0.00036986,14]
[382928396,1756773051805,-400.0,0.00036986,14]
[382928397,1756773051815,-400.0,0.00036986,14]
[382928398,1756773051830,-911.57,0.00036986,14]
[382928399,1756773051840,-400.0,0.00036986,14]
[382928400,1756773051850,-489.4,0.00036986,14]
[382928401,1756773051860,-403.72838426,0.00036986,14]
[382928402,1756773051869,-664.26,0.00036986,14]
[382928403,1756773051879,-400.0,0.00036986,14]
[382928404,1756773051889,-424.4,0.00036986,14]
[382928405,1756773051898,-400.0,0.00036986,14]
[382928406,1756773051909,-446.17,0.00036986,14]
[382928407,1756773051921,-400.0,0.00036986,14]
[382928408,1756773051931,-518.74,0.00036986,14]
[382928409,1756773051941,-760.01,0.00036986,14]
[382928410,1756773051950,-400.0,0.00036986,14]
[382928411,1756773051960,-400.0,0.00036986,14]
[382928412,1756773051969,-262.02551031,0.00036986,14]
[382928413,1756773051978,-473.59,0.00036986,14]
[382928414,1756773051987,-776.55,0.00036986,14]
[382928415,1756773051997,-577.19,0.00036986,14]
[382928416,1756773052006,-400.0,0.00036986,14]
[382928417,1756773052015,-400.73,0.00036986,14]
[382928418,1756773052025,-400.0,0.00036986,14]
[382928419,1756773052034,-151.0,0.00036986,30]
[382928420,1756773052043,-151.0,0.00036986,30]
[382928421,1756773052053,-400.0,0.00036986,14]
[382928422,1756773052062,-400.0,0.00036986,14]
[382928423,1756773052070,-400.0,0.00036986,14]
[382928424,1756773052078,-612.92,0.00036986,14]
[382928425,1756773052087,-400.0,0.00036986,14]
[382928426,1756773052096,-400.0,0.00036986,14]
[382928427,1756773052105,-980.06,0.00036986,14]
[382928428,1756773052113,-400.0,0.00036986,14]
[382928429,1756773052122,-564.43,0.00036986,14]
[382928430,1756773052131,-400.0,0.00036986,14]
[382928431,1756773052141,-400.0,0.00036986,14]
[382928432,1756773052151,-400.0,0.00036986,14]
[382928433,1756773052160,-400.0,0.00036986,14]
[382928434,1756773052170,-789.13,0.00036986,14]
[382928435,1756773052179,-403.32,0.00036986,14]
[382928436,1756773052189,-504.98,0.00036986,14]
[382928437,1756773052198,-400.0,0.00036986,14]
[382928438,1756773052208,-400.0,0.00036986,14]
[382928439,1756773052217,-780.08,0.00036986,14]
[382928440,1756773052227,-400.0,0.00036986,14]
[382928441,1756773052237,-400.0,0.00036986,14]
[382928442,1756773052246,-400.0,0.00036986,14]
[382928443,1756773052255,-490.48,0.00036986,14]
[382928444,1756773052266,-400.0,0.00036986,14]
[382928445,1756773052277,-400.0,0.00036986,14]
[382928446,1756773052286,-400.0,0.00036986,14]
[382928447,1756773052295,-495.13892487,0.00036986,14]
[382928448,1756773052306,-400.0,0.00036986,14]
[382928449,1756773052315,-500.0,0.00036986,14]
[382928450,1756773052327,-400.0,0.00036986,14]
[382928451,1756773052337,-619.19,0.00036986,14]
[382928452,1756773052346,-495.51,0.00036986,14]
[382928453,1756773052356,-400.0,0.00036986,14]
[382928454,1756773052365,-400.0,0.00036986,14]
[382928455,1756773052374,-801.55,0.00036986,14]
[382928456,1756773052385,-688.17,0.00036986,14]
[382928457,1756773052395,-151.0,0.00036986,30]
[382928458,1756773052405,-151.0,0.00036986,30]
[382928459,1756773052415,-400.0,0.00036986,14]
[382928460,1756773052426,-151.0,0.00036986,30]
[382928461,1756773052436,-400.0,0.00036986,14]